bitfinex/quotes_SOLUSD_20260311
["timestamp","ask_amount","ask_price","bid_price","bid_amount"]
[1773234848015,1.05412255,86.135,86.062,1.06154711]
[1773234848310,46.42057886,86.169,86.067,1.06154711]
[1773234848606,1.05412255,86.139,86.094,1.06154711]
[1773234849110,1.05412255,86.129,86.094,1.06154711]
[1773234849411,7.56822789,86.1,86.051,1.06154711]
[1773234849605,2.68,86.16,86.091,1.06154711]
[1773234849606,1.05412255,86.127,86.091,1.06154711]
[1773234849808,1.05412255,86.119,86.08,1.06154711]
[1773234850005,1.05412255,86.119,86.082,1.06154711]
[1773234850309,1.05412255,86.089,86.048,1.06154711]
[1773234851007,7.56822789,86.09,86.033,1.06154711]
[1773234851199,7.56822789,86.09,86.032,40.68253672]
[1773234851200,1.05412255,86.1,86.051,1.06154711]
[1773234851398,8.62235044,86.1,86.06,7.56822789]
[1773234851715,8.62235044,86.1,86.061,1.06154711]
[1773234851716,7.56822789,86.1,86.061,1.06154711]
[1773234851914,0.14216157,86.127,86.047,1.06154711]
[1773234851915,1.05412255,86.089,86.047,1.06154711]
[1773234852091,1.05412255,86.089,85.992,46.51545028]
[1773234852092,7.56822789,86.09,86.051,1.06154711]
[1773234852610,11.61467165,86.098,86.051,1.06154711]
[1773234852795,1.05412255,86.168,86.09,7.56822789]
[1773234852989,1.05412255,86.159,86.11,7.56822789]
[1773234853304,1.05412255,86.149,86.12,7.56822789]
[1773234853507,1.05412255,86.193,86.141,1.06154711]
[1773234853712,1.05412255,86.193,86.11,0.14216157]
[1773234853713,1.05412255,86.169,86.12,7.56822789]
[1773234853895,1.05412255,86.169,86.095,12.08693832]
[1773234853896,1.05412255,86.147,86.103,1.06154711]
[1773234854198,1.05412255,86.147,86.085,2.4]
[1773234854199,1.05412255,86.139,86.085,1.06154711]
[1773234854405,87.05947902,86.148,86.085,1.06154711]
[1773234854406,8.62235044,86.12,86.085,1.06154711]
[1773234854592,1.05412255,86.12,86.085,1.06154711]
[1773234854798,8.62235044,86.12,86.085,12.67797273]
[1773234855097,1.05412255,86.12,86.085,12.67797273]
[1773234855300,8.62235044,86.12,86.085,1.06154711]
[1773234855493,8.62235044,86.12,86.085,12.67797273]
[1773234855695,7.56822789,86.11,86.071,1.06154711]
[1773234855894,1.05412255,86.119,86.08,7.56822789]
[1773234856227,1.05412255,86.119,86.072,1.06154711]
[1773234856228,1.05412255,86.109,86.068,1.06154711]
[1773234856510,1.05412255,86.109,86.07,8.629775]
[1773234856688,7.56822789,86.09,86.05,20.25092549]
[1773234856894,7.56822789,86.09,86.051,1.06154711]
[1773234857095,1.05412255,86.094,86.044,40.67676597]
[1773234857096,7.56822789,86.1,86.061,1.06154711]
[1773234857511,1.05412255,86.099,86.07,7.56822789]
[1773234857713,1.05412255,86.099,86.044,40.67676597]
[1773234857714,7.56822789,86.14,86.091,1.06154711]
[1773234858011,2.7,86.168,86.092,11.61548111]
[1773234858012,11.60927813,86.138,86.092,11.61548111]
[1773234858212,1.05412255,86.161,86.12,7.56822789]
[1773234858514,2.7,86.168,86.12,7.56822789]
[1773234858515,1.05412255,86.159,86.12,7.56822789]
[1773234858720,46.40668252,86.195,86.092,87.11610834]
[1773234858721,1.05412255,86.169,86.13,7.56822789]
[1773234859015,1.05412255,86.159,86.12,7.56822789]
[1773234859515,1.05412255,86.17,86.121,1.06154711]
[1773234859701,40.59853844,86.21,86.151,1.10613656]
[1773234859893,7.56822789,86.2,86.157,1.10613656]
[1773234860093,1.07257309,86.188,86.14,7.56822789]
[1773234860291,1.07257309,86.179,86.134,1.10613656]
[1773234860514,1.07257309,86.179,86.13,7.56822789]
[1773234860515,1.07257309,86.169,86.13,7.56822789]
[1773234860706,1.07257309,86.169,86.12,1.10613656]
[1773234860707,1.07257309,86.159,86.121,11.61156976]
[1773234860897,1.07257309,86.139,86.1,7.56822789]
[1773234861097,0.14216157,86.177,86.086,11.61629068]
[1773234861098,1.07257309,86.149,86.101,1.10613656]
[1773234861312,1.07257309,86.218,86.141,1.10613656]
[1773234861512,11.59837158,86.219,86.1,7.56822789]
[1773234861513,1.07257309,86.209,86.17,7.56822789]
[1773234861691,1.07257309,86.209,86.161,1.10613656]
[1773234861692,1.07257309,86.199,86.15,7.56822789]
[1773234862014,144.97964484,86.219,86.15,7.56822789]
[1773234862015,1.07257309,86.189,86.15,7.56822789]
[1773234862398,7.56822789,86.18,86.14,7.56822789]
[1773234862715,1.07257309,86.179,86.132,1.10613656]
[1773234862906,1.07257309,86.169,86.132,1.10613656]
[1773234863224,1.07257309,86.189,86.16,7.56822789]
[1773234863513,1.07257309,86.189,86.144,1.10613656]
[1773234864014,1.07257309,86.189,86.16,7.56822789]
[1773234864202,11.60106265,86.199,86.161,11.60617912]
[1773234864402,1.07257309,86.198,86.17,7.56822789]
[1773234864603,1.07257309,86.216,86.18,7.56822789]
[1773234864909,7.56822789,86.21,86.17,7.56822789]
[1773234865103,11.59858583,86.218,86.15,36.58724294]
[1773234865104,7.56822789,86.19,86.15,36.58724294]
[1773234865323,7.56822789,86.19,86.152,1.10613656]
[1773234865324,1.07257309,86.189,86.152,1.10613656]
[1773234865508,7.56822789,86.2,86.16,7.56822789]
[1773234865822,7.56822789,86.2,86.127,48.88273992]
[1773234865823,1.07257309,86.179,86.14,7.56822789]
[1773234866125,4.82477569,86.232,86.11,0.14216157]
[1773234866126,1.07257309,86.189,86.152,1.10613656]
[1773234866314,46.38450856,86.236,86.151,11.60752632]
[1773234866315,7.56822789,86.23,86.181,1.10613656]
[1773234866639,7.56822789,86.22,86.171,1.10613656]
[1773234866798,7.56822789,86.22,86.181,1.10613656]
[1773234866999,28.9872612,86.245,86.18,7.56822789]
[1773234867227,7.56822789,86.21,86.171,1.10613656]
[1773234867600,7.56822789,86.19,86.16,1.10613656]
[1773234867800,7.56822789,86.2,86.16,1.10613656]
[1773234868111,7.56822789,86.19,86.15,7.56822789]
[1773234868417,7.56822789,86.19,86.151,11.60752632]
[1773234868920,7.56822789,86.19,86.149,1.10613656]
[1773234869216,7.56822789,86.19,86.15,7.56822789]
[1773234869519,7.56822789,86.19,86.15,8.67436445]
[1773234869711,8.41801977,86.19,86.15,1.10613656]
[1773234869907,8.41801977,86.19,86.151,11.60752632]
[1773234870114,11.60254327,86.188,86.141,1.10613656]
[1773234870419,7.56822789,86.18,86.141,1.10613656]
[1773234870798,11.60254327,86.188,86.141,1.10613656]
[1773234871504,7.56822789,86.18,86.141,1.10613656]
[1773234871919,0.85676274,86.179,86.135,11.60958088]
[1773234872218,7.56822789,86.18,86.135,11.60958088]
[1773234872219,0.85676274,86.177,86.135,11.60958088]
[1773234872412,0.85676274,86.177,86.13,7.56822789]
[1773234872413,7.56822789,86.17,86.131,1.10613656]
[1773234873225,7.56822789,86.16,86.131,1.10613656]
[1773234874026,7.56822789,86.16,86.12,1.10613656]
[1773234874345,11.60644854,86.159,86.121,11.61156976]
[1773234874517,11.60644854,86.159,86.122,1.10613656]
[1773234875016,40.62256989,86.159,86.122,1.10613656]
[1773234875237,11.60644854,86.159,86.122,1.10613656]
[1773234875825,7.56822789,86.15,86.122,1.10613656]
[1773234876123,40.62256989,86.159,86.122,1.10613656]
[1773234876324,11.60644854,86.159,86.123,1.10613656]
[1773234877436,7.56822789,86.15,86.123,1.10613656]
[1773234877619,0.87355788,86.149,86.111,11.61284345]
[1773234877935,0.87355788,86.149,86.108,12.71945936]
[1773234878131,7.56822789,86.14,86.108,12.71945936]
[1773234878436,7.56822789,86.14,86.076,3.69383402]
[1773234878437,0.87679007,86.129,86.091,1.10613656]
[1773234878820,7.56822789,86.13,86.091,1.10613656]
[1773234880817,7.56822789,86.12,86.093,1.10247998]
[1773234881219,11.61049123,86.129,86.09,7.56822789]
[1773234881418,11.61049123,86.129,86.059,46.47936278]
[1773234881419,7.56822789,86.12,86.084,1.10247998]
[1773234881618,7.56822789,86.13,86.084,1.10247998]
[1773234882223,0.8924767,86.143,86.084,1.10247998]
[1773234882418,7.56822789,86.11,86.084,1.10247998]
[1773234882624,7.56822789,86.14,86.091,1.10247998]
[1773234882823,7.56822789,86.13,86.092,11.61548111]
[1773234883019,7.56822789,86.11,86.076,1.10247998]
[1773234883248,0.89548664,86.134,86.091,1.10247998]
[1773234883424,40.63011503,86.143,86.091,1.10247998]
[1773234883425,7.56822789,86.13,86.091,1.10247998]
[1773234883835,7.56822789,86.11,86.077,1.10247998]
[1773234884041,7.56822789,86.12,86.066,1.10247998]
[1773234884226,0.89847432,86.119,86.071,1.10247998]
[1773234884426,7.56822789,86.12,86.071,1.10247998]
[1773234884646,7.56822789,86.11,86.071,1.10247998]
[1773234884828,3.69383402,86.149,86.03,0.2]
[1773234884829,40.63624752,86.13,86.091,1.10247998]
[1773234885037,40.63624752,86.13,86.056,2.48]
[1773234885038,1.25856216,86.129,86.08,7.56822789]
[1773234885243,7.56822789,86.12,86.07,7.56822789]
[1773234886957,40.641438,86.119,86.071,11.61831511]
[1773234887125,40.641438,86.119,86.081,1.10247998]
[1773234887523,11.61183943,86.119,86.091,1.10247998]
[1773234887728,7.56822789,86.14,86.091,1.10247998]
[1773234887729,11.61062604,86.128,86.091,1.10247998]
[1773234888438,11.61062604,86.128,86.101,1.10247998]
[1773234888757,11.61062604,86.128,86.071,40.66410288]
[1773234888758,1.11640059,86.153,86.111,1.10247998]
[1773234888925,12.72365744,86.153,86.121,11.61156976]
[1773234889241,11.60636166,86.16,86.13,7.56822789]
[1773234889442,41.73854683,86.16,86.121,12.71404974]
[1773234889746,11.60187022,86.193,86.151,1.12023946]
[1773234889928,7.56822789,86.19,86.151,1.12023946]
[1773234890128,1.14014062,86.192,86.151,1.12023946]
[1773234890326,1.14014062,86.159,86.111,11.61291821]
[1773234890524,1.14014062,86.159,86.12,7.56822789]
[1773234890751,1.14014062,86.159,86.111,40.64521373]
[1773234890949,1.14014062,86.157,86.111,40.64521373]
[1773234891146,1.14014062,86.157,86.12,7.56822789]
[1773234892042,11.60658325,86.158,86.12,7.56822789]
[1773234892244,1.14014062,86.157,86.12,8.68846735]
[1773234892428,1.14014062,86.157,86.087,46.46412962]
[1773234892429,1.14014062,86.149,86.105,1.12023946]
[1773234892630,1.14014062,86.157,86.13,7.56822789]
[1773234892848,1.14014062,86.155,86.121,1.12023946]
[1773234893250,1.14014062,86.149,86.111,12.73315767]
[1773234893924,1.14014062,86.149,86.112,1.12023946]
[1773234895250,1.14014062,86.147,86.101,1.12023946]
[1773234895747,1.14014062,86.139,86.094,2.48]
[1773234896052,1.14014062,86.139,86.092,29.03868033]
[1773234896053,1.14014062,86.139,86.1,8.68846735]
[1773234896232,1.14014062,86.139,86.101,1.12023946]
[1773234897152,11.60927813,86.138,86.102,12.73437153]
[1773234897355,1.14014062,86.137,86.102,12.73437153]
[1773234897536,1.14014062,86.137,86.102,1.12023946]
[1773234897855,1.14014062,86.137,86.097,11.61469247]
[1773234898348,1.14014062,86.137,86.082,1.12023946]
[1773234898654,1.14014062,86.137,85.997,12.33706547]
[1773234898655,1.14014062,86.099,86.051,12.7412549]
[1773234898951,1.14014062,86.099,86.06,7.56822789]
[1773234899168,40.65135078,86.098,86.061,11.61966512]
[1773234899356,1.14014062,86.097,86.061,11.61966512]
[1773234899536,1.14014062,86.097,86.06,7.56822789]
[1773234899940,1.14014062,86.097,86.052,11.62088039]
[1773234900140,40.65135078,86.098,86.052,11.62088039]
[1773234900141,1.14014062,86.089,86.053,1.12023946]
[1773234900342,1.14014062,86.059,86.02,8.68846735]
[1773234900747,7.56822789,86.07,86.032,1.12023946]
[1773234901053,1.14014062,86.069,86.04,7.56822789]
[1773234901353,87.11003739,86.098,86.03,0.2]
[1773234901354,1.14014062,86.095,86.052,1.12023946]
[1773234901540,1.14014062,86.089,86.052,1.12023946]
[1773234901935,1.14014062,86.109,86.052,1.12023946]
[1773234902154,11.6133228,86.108,86.08,7.56822789]
[1773234902855,1.14014062,86.13,86.1,7.56822789]
[1773234903036,1.14014062,86.13,86.11,7.56822789]
[1773234903435,1.14014062,86.13,86.109,11.61309688]
[1773234903655,1.14014062,86.139,86.1,7.56822789]
[1773234903961,1.14014062,86.129,86.09,7.56822789]
[1773234904353,1.14014062,86.129,86.1,7.56822789]
[1773234904536,1.14014062,86.129,86.088,2.48]
[1773234904738,1.14014062,86.129,86.1,7.56822789]
[1773234905350,11.61062604,86.128,86.101,11.61426696]
[1773234905550,11.61062604,86.128,86.1,7.56822789]
[1773234905748,1.14014062,86.139,86.101,11.61426696]
[1773234905953,11.60864521,86.143,86.11,7.56822789]
[1773234906693,1.14014062,86.142,86.11,7.56822789]
[1773234906861,2.7,86.16,86.101,40.64993437]
[1773234906862,1.14014062,86.158,86.13,7.56822789]
[1773234907156,1.14014062,86.158,86.121,1.12023946]
[1773234907469,1.14014062,86.156,86.12,7.56822789]
[1773234907755,1.14014062,86.156,86.12,19.16094427]
[1773234908461,1.14014062,86.156,86.12,7.54934032]
[1773234909558,11.6069874,86.155,86.123,1.12023946]
[1773234910059,1.14014062,86.139,86.1,7.54934032]
[1773234910256,11.6069874,86.155,86.053,1.12023946]
[1773234910257,1.14014062,86.129,86.053,1.12023946]
[1773234910440,1.14014062,86.119,86.08,7.54934032]
[1773234910947,1.14014062,86.129,86.091,1.12023946]
[1773234911351,1.14014062,86.129,86.09,7.54934032]
[1773234911961,1.14014062,86.127,86.09,7.54934032]
[1773234912460,1.14014062,86.119,86.08,7.54934032]
[1773234912642,1.14014062,86.119,86.081,1.12023946]
[1773234913556,1.14014062,86.109,86.075,11.61774929]
[1773234913855,1.14014062,86.107,86.071,11.61831511]
[1773234914055,11.61049123,86.129,86.091,1.12023946]
[1773234914567,1.14014062,86.128,86.091,1.12023946]
[1773234915148,1.14014062,86.119,86.08,7.54934032]
[1773234915342,1.14014062,86.119,86.09,7.54934032]
[1773234915945,1.14014062,86.117,86.08,7.54934032]
[1773234916154,1.14014062,86.117,86.08,8.66957978]
[1773234916348,1.14014062,86.117,86.081,1.12023946]
[1773234917048,1.14014062,86.117,86.08,7.54934032]
[1773234917252,1.14014062,86.117,86.09,7.54934032]
[1773234917445,1.14014062,86.129,86.09,7.54934032]
[1773234917645,1.14014062,86.129,86.084,1.12023946]
[1773234917847,1.14014062,86.119,86.08,7.54934032]
[1773234918148,1.14014062,86.109,86.07,7.54934032]
[1773234919056,1.14014062,86.099,86.052,11.62088039]
[1773234919365,7.54934032,86.09,86.052,11.62088039]
[1773234919667,1.14014062,86.079,86.052,11.62088039]
[1773234919867,7.54934032,86.1,86.06,7.54934032]
[1773234919868,1.26304184,86.089,86.06,7.54934032]
[1773234920054,11.61491971,86.097,86.061,40.66882792]
[1773234920256,29.02993566,86.118,86.061,40.66882792]
[1773234920257,1.26304184,86.101,86.07,7.54934032]
[1773234920454,11.61440185,86.1,86.07,7.54934032]
[1773234920655,0.14216157,86.127,86.061,40.66882792]
[1773234920656,1.26304184,86.113,86.08,7.54934032]
[1773234920962,34.9910455,86.136,86.061,98.76715352]
[1773234920963,1.26304184,86.109,86.07,7.54934032]
[1773234921162,1.26304184,86.109,86.08,7.54934032]
[1773234921763,1.26304184,86.109,86.071,1.15988461]
[1773234922470,1.26304184,86.107,86.06,7.54934032]
[1773234922674,1.26304184,86.099,86.06,19.16914045]
[1773234922855,1.26304184,86.099,86.061,1.15988461]
[1773234923057,1.26304184,86.099,86.07,7.54934032]
[1773234923375,1.26304184,86.099,86.061,1.15988461]
[1773234924273,1.26304184,86.099,86.07,7.54934032]
[1773234924471,1.26304184,86.099,86.071,11.61831511]
[1773234924771,7.54934032,86.11,86.071,40.66410288]
[1773234924772,1.26304184,86.109,86.071,40.66410288]
[1773234924981,1.26304184,86.109,86.08,7.54934032]
[1773234925183,12.87622977,86.109,86.08,7.54934032]
[1773234925474,1.26304184,86.109,86.08,7.54934032]
[1773234925675,12.87622977,86.109,86.08,7.54934032]
[1773234926385,0.14216157,86.137,86.06,7.54934032]
[1773234926386,1.26304184,86.097,86.06,7.54934032]
[1773234926554,1.26304184,86.089,86.05,7.54934032]
[1773234926755,1.26304184,86.089,86.046,40.67591752]
[1773234926756,1.26304184,86.089,86.046,11.62169072]
[1773234926961,1.26304184,86.089,86.05,7.54934032]
[1773234927165,1.26304184,86.089,86.051,1.15988461]
[1773234928582,11.61602081,86.088,86.051,1.15988461]
[1773234928758,11.61602081,86.088,86.036,2.46]
[1773234928759,1.26304184,86.079,86.04,7.54934032]
[1773234929158,1.26304184,86.079,86.042,11.622231]
[1773234930879,1.26304184,86.077,86.042,11.622231]
[1773234931075,40.66079602,86.078,86.026,29.06081323]
[1773234931076,1.26304184,86.069,86.026,29.06081323]
[1773234931283,1.26304184,86.069,86.031,11.62371703]
[1773234931476,1.26304184,86.059,86.02,7.54934032]
[1773234931681,1.26304184,86.049,86.023,29.0616826]
[1773234931984,1.26304184,86.049,86.01,7.54934032]
[1773234932180,1.26304184,86.049,86.025,11.62445834]
[1773234932367,1.26304184,86.059,86.031,11.62371703]
[1773234932677,7.54934032,86.05,86.015,1.15988461]
[1773234932883,1.26304184,86.049,86.022,11.62488852]
[1773234933456,1.26304184,86.049,86.018,11.62543219]
[1773234933661,1.26304184,86.049,86.015,11.62579458]
[1773234933986,1.26304184,86.049,86.019,11.62532203]
[1773234934668,11.6214206,86.048,86.015,11.6258792]
[1773234934867,1.26304184,86.047,86.02,7.54934032]
[1773234935067,1.26304184,86.047,86.015,11.6258792]
[1773234935271,1.26304184,86.047,86.003,1.15988461]
[1773234935597,1.26304184,86.047,86.01,7.54934032]
[1773234935886,1.26304184,86.047,86.004,11.62736616]
[1773234935887,1.26304184,86.057,86.021,1.15988461]
[1773234936100,1.26304184,86.054,86.021,1.15988461]
[1773234936468,1.26304184,86.069,86.03,7.54934032]
[1773234936708,1.26304184,86.069,86.031,1.15988461]
[1773234936709,11.61890513,86.067,86.031,1.15988461]
[1773234936877,1.26304184,86.069,86.04,7.54934032]
[1773234937278,11.61872008,86.068,86.04,7.54934032]
[1773234938683,1.26304184,86.087,86.041,1.15988461]
[1773234938890,1.26304184,86.083,86.043,1.15988461]
[1773234939072,1.26304184,86.083,86.05,7.54934032]
[1773234939271,1.26304184,86.083,86.043,1.15988461]
[1773234939466,1.27722791,86.079,86.043,1.15988461]
[1773234940494,1.27722791,86.079,86.05,7.54934032]
[1773234940990,11.61737029,86.078,86.044,11.62196085]
[1773234941197,1.27722791,86.077,86.044,11.62196085]
[1773234941573,1.27722791,86.077,86.044,40.67686299]
[1773234941794,1.27722791,86.089,86.044,40.67686299]
[1773234941995,1.27722791,86.089,86.05,7.54934032]
[1773234942579,1.27722791,86.089,86.044,40.67686299]
[1773234942975,34.9910455,86.103,86.042,1.23592579]
[1773234942976,1.27722791,86.079,86.042,1.23592579]
[1773234943196,1.27722791,86.079,86.03,7.54934032]
[1773234943386,1.27722791,86.079,86.031,1.23592579]
[1773234943789,1.27722791,86.059,86.02,7.54934032]
[1773234944092,1.27722791,86.059,85.965,46.53049431]
[1773234944093,1.27722791,86.049,86.002,1.23592579]
[1773234944292,1.27722791,86.049,86.001,11.62777177]
[1773234944293,1.27722791,86.049,86.02,7.54934032]
[1773234944893,1.27722791,86.049,86.011,1.23592579]
[1773234945205,1.27722791,86.047,86.02,7.54934032]
[1773234945375,1.27722791,86.047,86.012,41.92792225]
[1773234946096,11.62169072,86.046,86.013,1.23592579]
[1773234946295,1.27722791,86.045,86.013,1.23592579]
[1773234946882,11.62090935,86.052,86.021,1.23592579]
[1773234947396,11.62090935,86.052,86.02,7.54934032]
[1773234947397,1.27722791,86.051,86.02,7.54934032]
[1773234947693,1.27722791,86.049,86.012,11.6262847]
[1773234948389,7.54934032,86.04,86.012,12.86221049]
[1773234948594,1.27722791,86.047,86.012,12.86221049]
[1773234948796,1.27722791,86.047,86.011,11.62641987]
[1773234949900,7.54934032,86.04,86.011,11.62641987]
[1773234950079,1.17802521,86.039,86.011,11.62641987]
[1773234950274,1.17802521,86.037,86.011,11.62641987]
[1773234950488,1.17802521,86.037,86.01,7.54934032]
[1773234950802,1.17802521,86.037,86.007,11.62690394]
[1773234951100,1.17802521,86.037,86.002,11.62763656]
[1773234952001,1.17802521,86.046,86.011,1.28028141]
[1773234952302,1.17802521,86.051,86.021,11.62506829]
[1773234953896,1.17802521,86.051,86.022,1.28028141]
[1773234954406,1.17802521,86.049,86.023,11.62479801]
[1773234954994,0.14216157,86.077,86.03,8.82962173]
[1773234954995,12.79823042,86.057,86.03,8.82962173]
[1773234955194,1.17802521,86.056,86.03,1.28028141]
[1773234955384,1.17802521,86.056,86.023,11.62479801]
[1773234955579,1.17802521,86.049,86.016,11.62569653]
[1773234956200,11.61966512,86.061,86.031,1.28028141]
[1773234956383,11.61966512,86.061,86.032,11.62358192]
[1773234956582,1.17802521,86.06,86.031,1.28028141]
[1773234956782,1.17802521,86.06,86.031,12.90394265]
[1773234956783,1.17802521,86.059,86.031,12.90394265]
[1773234957200,1.17802521,86.059,86.031,11.62366124]
[1773234957589,1.17802521,86.059,86.023,1.28028141]
[1773234957796,1.17802521,86.059,86.023,12.90507942]
[1773234958398,1.17802521,86.057,86.024,1.28028141]
[1773234959601,1.17802521,86.057,86.024,12.90494429]
[1773234959808,1.17802521,86.057,86.02,7.54934032]
[1773234960009,1.17802521,86.057,86.021,11.62506829]
[1773234960299,1.17802521,86.037,86.006,1.28028141]
[1773234960503,1.17802521,86.037,86.006,12.90730598]
[1773234960685,1.17802521,86.037,86.006,11.62702457]
[1773234960881,1.17802521,86.054,86.021,1.28028141]
[1773234961300,11.62074535,86.053,86.021,1.28028141]
[1773234961499,1.17802521,86.054,86.021,1.28028141]
[1773234961704,1.17802521,86.062,86.031,1.28028141]
[1773234962505,11.61966512,86.061,86.033,1.28028141]
[1773234962806,1.17802521,86.106,86.051,1.28028141]
[1773234962985,1.17802521,86.111,86.08,7.54934032]
[1773234963300,40.64474172,86.112,86.071,1.28028141]
[1773234963301,1.17802521,86.109,86.071,1.28028141]
[1773234963487,1.17802521,86.109,86.032,191.78910171]
[1773234963488,1.17802521,86.099,86.06,7.54934032]
[1773234964196,1.17802521,86.099,86.051,2.44]
[1773234964400,1.17802521,86.089,86.051,2.44]
[1773234964901,1.17802521,86.087,86.051,2.44]
[1773234965104,1.17802521,86.087,86.052,11.62088039]
[1773234966731,1.17802521,86.105,86.071,1.28028141]
[1773234966907,11.6138623,86.104,86.08,7.54934032]
[1773234967085,1.17802521,86.103,86.073,1.28028141]
[1773234967290,1.17802521,86.103,86.08,7.54934032]
[1773234967692,1.17802521,86.116,86.09,7.54934032]
[1773234968091,1.17802521,86.114,86.081,1.28028141]
[1773234968802,11.61264849,86.113,86.082,11.61683046]
[1773234969006,11.61264849,86.113,86.083,1.28028141]
[1773234969801,1.17802521,86.109,86.08,7.55510218]
[1773234970113,1.17802521,86.109,86.081,1.28028141]
[1773234970491,1.17802521,86.126,86.081,1.28028141]
[1773234970792,12.78932532,86.123,86.092,11.61548111]
[1773234970992,12.78932532,86.123,86.08,7.55510218]
[1773234970993,1.17802521,86.119,86.08,7.55510218]
[1773234973296,1.17802521,86.109,86.073,1.28028141]
[1773234973692,1.17802521,86.099,86.056,1.28028141]
[1773234974101,1.17802521,86.099,86.061,1.28028141]
[1773234975217,11.61318793,86.109,86.071,1.28028141]
[1773234975519,1.17802521,86.108,86.071,1.28028141]
[1773234976398,1.17802521,86.108,86.063,1.28028141]
[1773234976606,1.17802521,86.099,86.063,1.28028141]
[1773234977715,1.17802521,86.097,86.064,11.61926008]
[1773234978317,1.17802521,86.097,86.065,1.28028141]
[1773234980108,1.29139904,86.095,86.066,11.61899007]
[1773234981924,1.29139904,86.095,86.07,1.21580661]
[1773234982223,1.29139904,86.095,86.07,8.77090879]
[1773234982817,1.29139904,86.095,86.071,11.61831511]
[1773234984024,11.61521128,86.094,86.071,11.61831511]
[1773234984505,1.29139904,86.093,86.07,1.21580661]
[1773234985119,1.29139904,86.093,86.07,12.83417556]
[1773234985120,11.61548111,86.092,86.07,12.83417556]
[1773234985433,12.90688015,86.092,86.07,1.21580661]
[1773234985638,7.55510218,86.08,86.047,1.21580661]
[1773234985807,1.29139904,86.079,86.038,1.21580661]
[1773234986427,1.29139904,86.079,86.041,1.21580661]
[1773234986728,40.65418389,86.092,86.061,1.21580661]
[1773234986729,1.29139904,86.091,86.061,1.21580661]
[1773234990105,1.29139904,86.077,86.04,7.55510218]
[1773234991026,1.29139904,86.077,86.04,8.77090879]
[1773234991426,1.29139904,86.069,86.02,1.21580661]
[1773234991610,1.29139904,86.067,86.031,11.62371703]
[1773234992012,1.29139904,86.067,86.031,12.83952364]
[1773234992413,1.29139904,86.059,86.031,1.21580661]
[1773234992812,1.29139904,86.084,86.051,1.21580661]
[1773234993330,12.90806599,86.084,86.059,1.21580661]
[1773234993518,1.29139904,86.083,86.051,1.21580661]
[1773234993831,1.29139904,86.083,86.048,2.44]
[1773234993832,11.61683046,86.082,86.06,3.02433387]
[1773234994311,1.29139904,86.093,86.07,3.02433387]
[1773234994511,1.29139904,86.103,86.071,1.21580661]
[1773234995318,1.29139904,86.099,86.063,1.21580661]
[1773234995814,1.29139904,86.097,86.07,7.55886533]
[1773234996312,1.29139904,86.097,86.065,1.21580661]
[1773234996517,1.29139904,86.097,86.064,11.61926008]
[1773234997523,11.61467165,86.098,86.071,1.21580661]
[1773234997728,1.29139904,86.104,86.072,11.61818012]
[1773234998616,1.29139904,86.099,86.072,11.61818012]
[1773234998815,1.29139904,86.099,86.072,12.83398673]
[1773234999533,1.29139904,86.099,86.073,1.29800534]
[1773234999728,11.61467165,86.098,86.073,1.29800534]
[1773234999923,11.61467165,86.098,86.075,1.29800534]
[1773235000122,29.03431856,86.105,86.074,11.61791017]
[1773235000123,1.24718033,86.114,86.081,1.29800534]
[1773235000327,1.24718033,86.124,86.1,8.85687067]
[1773235000633,1.24718033,86.124,86.1,1.29800534]
[1773235000933,1.24718033,86.124,86.09,7.55886533]
[1773235000934,1.24718033,86.124,86.091,1.29800534]
[1773235001428,11.61130011,86.123,86.1,7.55886533]
[1773235002018,11.61130011,86.123,86.093,1.29800534]
[1773235002213,1.24718033,86.122,86.093,1.29800534]
[1773235003523,11.60995205,86.133,86.11,7.55886533]
[1773235003834,11.60947932,86.137,86.111,1.29800534]
[1773235004012,1.24718033,86.136,86.101,1.29800534]
[1773235004432,1.24718033,86.129,86.091,1.29800534]
[1773235004825,1.24718033,86.129,86.092,11.61548111]
[1773235005025,1.24718033,86.129,86.092,12.91348645]
[1773235005425,1.24718033,86.129,86.092,1.29800534]
[1773235005618,7.55886533,86.13,86.092,1.29800534]
[1773235005619,1.24718033,86.127,86.092,1.29800534]
[1773235006638,1.24718033,86.109,86.081,2.42]
[1773235007237,1.24718033,86.109,86.081,14.03686944]
[1773235007630,1.24718033,86.107,86.081,14.03686944]
[1773235009442,1.24718033,86.089,86.044,1.29800534]
[1773235009749,1.24718033,86.087,86.051,1.29800534]
[1773235010126,7.55886533,86.08,86.052,1.24007035]
[1773235010340,1.24529089,86.079,86.043,1.24007035]
[1773235010541,1.24529089,86.069,86.038,1.24007035]
[1773235010737,40.65607284,86.088,86.025,2.42]
[1773235010738,11.61602081,86.088,86.051,1.24007035]
[1773235011046,12.8613117,86.088,86.051,1.24007035]
[1773235011338,1.24529089,86.087,86.051,1.24007035]
[1773235012130,1.24529089,86.107,86.08,8.79893568]
[1773235012630,1.24529089,86.107,86.081,1.24007035]
[1773235013529,40.64049418,86.121,86.06,7.55886533]
[1773235013530,1.24529089,86.099,86.06,7.55886533]
[1773235014038,7.55886533,86.1,86.061,12.85973547]
[1773235014039,12.86125808,86.089,86.061,12.85973547]
[1773235014237,1.24529089,86.088,86.061,12.85973547]
[1773235016629,41.901836,86.087,86.061,1.24007035]